[Event "Early-Titled-Tuesday-Blitz-February-20-2024"]
[Site "Chess.com"]
[Date "2024.02.20"]
[Round "6"]
[White "Goffredo_Fofi"]
[Black "vovachesss"]
[Result "0-1"]
[WhiteElo "2551"]
[BlackElo "2813"]
[TimeControl "180+1"]
[EndTime "9:09:07 PST"]
[Termination "vovachesss won by checkmate"]

1. e4 {[%clk 0:03:00.9]} 1... e5 {[%clk 0:03:00.3]} 2. Nc3 {[%clk 0:03:00.7]}
2... Nf6 {[%clk 0:02:59.3]} 3. g3 {[%clk 0:03:01.3]} 3... d5 {[%clk 0:02:59.1]}
4. exd5 {[%clk 0:03:02.2]} 4... c6 {[%clk 0:02:59.5]} 5. Bg2 {[%clk 0:03:03.1]}
5... cxd5 {[%clk 0:02:59.4]} 6. d4 {[%clk 0:02:44]} 6... e4 {[%clk 0:02:55.1]}
7. Bg5 {[%clk 0:02:42.8]} 7... Nc6 {[%clk 0:02:47.5]} 8. Nge2 {[%clk 0:02:42.6]}
8... Be7 {[%clk 0:02:46.1]} 9. Qd2 {[%clk 0:02:35.2]} 9... h6 {[%clk 0:02:45.5]}
10. Bxf6 {[%clk 0:02:25.3]} 10... Bxf6 {[%clk 0:02:46.4]} 11. Nf4 {[%clk
0:02:24.4]} 11... Be6 {[%clk 0:02:35.8]} 12. Nxe6 {[%clk 0:02:20]} 12... fxe6
{[%clk 0:02:35.7]} 13. Ne2 {[%clk 0:02:20.9]} 13... O-O {[%clk 0:02:30.8]} 14.
c3 {[%clk 0:02:17.7]} 14... Bg5 {[%clk 0:02:21.3]} 15. Qd1 {[%clk 0:02:12.1]}
15... Qb6 {[%clk 0:02:01.2]} 16. Qb3 {[%clk 0:02:10.6]} 16... Qa6 {[%clk
0:01:59.5]} 17. Rd1 {[%clk 0:01:48.9]} 17... Rf7 {[%clk 0:01:34.6]} 18. Bf1
{[%clk 0:01:42]} 18... Na5 {[%clk 0:00:53]} 19. Qc2 {[%clk 0:01:41.9]} 19...
Raf8 {[%clk 0:00:47.1]} 20. Nf4 {[%clk 0:01:42]} 20... Qd6 {[%clk 0:00:45.4]}
21. Nh3 {[%clk 0:01:41.9]} 21... Bd8 {[%clk 0:00:34]} 22. Bg2 {[%clk 0:01:29.7]}
22... g5 {[%clk 0:00:14.5]} 23. O-O {[%clk 0:01:23.2]} 23... e5 {[%clk
0:00:14.8]} 24. dxe5 {[%clk 0:01:18.6]} 24... Qxe5 {[%clk 0:00:15.2]} 25. Qe2
{[%clk 0:01:17.1]} 25... Bb6 {[%clk 0:00:13.8]} 26. Kh1 {[%clk 0:01:16]} 26...
Nc6 {[%clk 0:00:06.6]} 27. Rd2 {[%clk 0:01:01.6]} 27... Qe6 {[%clk 0:00:06.5]}
28. Rfd1 {[%clk 0:00:49.2]} 28... Ne5 {[%clk 0:00:06.5]} 29. Rxd5 {[%clk
0:00:45.2]} 29... Ng4 {[%clk 0:00:05.7]} 30. Bxe4 {[%clk 0:00:24.9]} 30... Rxf2
{[%clk 0:00:04.6]} 31. Nxf2 {[%clk 0:00:10.5]} 31... Nxf2+ {[%clk 0:00:05.5]}
32. Kg2 {[%clk 0:00:03.5]} 32... Qh3+ {[%clk 0:00:05.6]} 33. Kg1 {[%clk
0:00:02.5]} 33... Nxe4+ {[%clk 0:00:05.9]} 34. Kh1 {[%clk 0:00:02.4]} 34... Nf2+
{[%clk 0:00:05.7]} 35. Kg1 {[%clk 0:00:03]} 35... Nxd1+ {[%clk 0:00:05.8]} 36.
Kh1 {[%clk 0:00:03.9]} 36... Rf1+ {[%clk 0:00:04.7]} 37. Qxf1 {[%clk 0:00:04.4]}
37... Qxf1# {[%clk 0:00:05.6]} 0-1

[Event "Early-Titled-Tuesday-Blitz-February-20-2024"]
[Site "Chess.com"]
[Date "2024.02.20"]
[Round "6"]
[White "ARMQUEEN"]
[Black "yaguigor"]
[Result "0-1"]
[WhiteElo "2495"]
[BlackElo "2678"]
[TimeControl "180+1"]
[EndTime "9:09:07 PST"]
[Termination "yaguigor won by resignation"]

1. e4 {[%clk 0:03:00.9]} 1... c5 {[%clk 0:02:58.4]} 2. Nc3 {[%clk 0:03:00.3]}
2... Nc6 {[%clk 0:02:57.9]} 3. Bb5 {[%clk 0:02:59.8]} 3... Nd4 {[%clk
0:02:57.5]} 4. Bc4 {[%clk 0:03:00.1]} 4... e6 {[%clk 0:02:57.8]} 5. Nge2 {[%clk
0:02:59.9]} 5... Nf6 {[%clk 0:02:54.5]} 6. O-O {[%clk 0:02:57.9]} 6... a6 {[%clk
0:02:33.4]} 7. a4 {[%clk 0:02:57.2]} 7... d6 {[%clk 0:02:02.2]} 8. d3 {[%clk
0:02:55.7]} 8... Qc7 {[%clk 0:01:58.1]} 9. Nxd4 {[%clk 0:02:54.4]} 9... cxd4
{[%clk 0:01:57.5]} 10. Ne2 {[%clk 0:02:54.6]} 10... Nxe4 {[%clk 0:01:56.8]} 11.
Bxe6 {[%clk 0:02:45.3]} 11... fxe6 {[%clk 0:01:40.9]} 12. dxe4 {[%clk
0:02:44.4]} 12... e5 {[%clk 0:01:41.4]} 13. f4 {[%clk 0:02:44.1]} 13... Bg4
{[%clk 0:01:37.3]} 14. h3 {[%clk 0:02:42.3]} 14... Bh5 {[%clk 0:01:27.9]} 15.
Qd3 {[%clk 0:02:42.5]} 15... Rc8 {[%clk 0:01:22.8]} 16. Ng3 {[%clk 0:02:39.5]}
16... Bf7 {[%clk 0:01:20.8]} 17. Rf2 {[%clk 0:02:25.5]} 17... g6 {[%clk
0:01:17.6]} 18. fxe5 {[%clk 0:02:23.2]} 18... dxe5 {[%clk 0:01:16.5]} 19. Bg5
{[%clk 0:02:09.1]} 19... Bg7 {[%clk 0:01:16.2]} 20. Qa3 {[%clk 0:02:07.6]} 20...
Qc5 {[%clk 0:01:14.6]} 21. Qxc5 {[%clk 0:02:04.7]} 21... Rxc5 {[%clk 0:01:14.1]}
22. Raf1 {[%clk 0:02:04.4]} 22... Bc4 {[%clk 0:01:08.8]} 23. Re1 {[%clk
0:01:57.1]} 23... Rf8 {[%clk 0:01:06.4]} 24. Rd2 {[%clk 0:01:51.2]} 24... Be6
{[%clk 0:01:03.5]} 25. c3 {[%clk 0:01:35.1]} 25... h6 {[%clk 0:01:02.5]} 26.
cxd4 {[%clk 0:01:31.8]} 26... exd4 {[%clk 0:01:01.7]} 27. Bh4 {[%clk 0:01:31.6]}
27... Rf4 {[%clk 0:01:01.1]} 28. Ne2 {[%clk 0:01:28.6]} 28... Rxh4 {[%clk
0:00:58.1]} 29. Nxd4 {[%clk 0:01:20.7]} 29... Bxd4+ {[%clk 0:00:57]} 30. Rxd4
{[%clk 0:01:21]} 30... Rf4 {[%clk 0:00:54]} 31. Red1 {[%clk 0:01:18.1]} 31...
Ke7 {[%clk 0:00:54.1]} 32. Rb4 {[%clk 0:01:16.6]} 32... b5 {[%clk 0:00:52.4]}
33. Rbd4 {[%clk 0:01:12.3]} 33... Rc4 {[%clk 0:00:47.1]} 34. axb5 {[%clk
0:01:08.7]} 34... Rxd4 {[%clk 0:00:45.5]} 35. Rxd4 {[%clk 0:01:08.2]} 35... axb5
{[%clk 0:00:46.4]} 36. Rb4 {[%clk 0:01:07.4]} 36... Bd7 {[%clk 0:00:45.9]} 37.
g3 {[%clk 0:01:06.1]} 37... Rf3 {[%clk 0:00:44.4]} 38. Kg2 {[%clk 0:01:06]}
38... Rd3 {[%clk 0:00:44.5]} 39. h4 {[%clk 0:01:03.5]} 39... Kd6 {[%clk
0:00:42.3]} 40. e5+ {[%clk 0:00:55.2]} 40... Kxe5 {[%clk 0:00:40.6]} 41. Kf2
{[%clk 0:00:51.6]} 41... h5 {[%clk 0:00:37.6]} 42. Kg2 {[%clk 0:00:39.6]} 42...
Bc6+ {[%clk 0:00:30.3]} 43. Kh2 {[%clk 0:00:36.7]} 43... Rd2+ {[%clk 0:00:29.3]}
44. Kh3 {[%clk 0:00:34.3]} 44... Bd7+ {[%clk 0:00:27.2]} 45. g4 {[%clk
0:00:32.8]} 45... hxg4+ {[%clk 0:00:27.8]} 46. Kg3 {[%clk 0:00:32.8]} 46... Rd3+
{[%clk 0:00:27.9]} 47. Kf2 {[%clk 0:00:32.8]} 47... g3+ {[%clk 0:00:26.9]} 48.
Kg2 {[%clk 0:00:32.3]} 48... Bc6+ {[%clk 0:00:26.2]} 0-1

[Event "Early-Titled-Tuesday-Blitz-February-20-2024"]
[Site "Chess.com"]
[Date "2024.02.20"]
[Round "6"]
[White "patzersame"]
[Black "ketster"]
[Result "0-1"]
[WhiteElo "2391"]
[BlackElo "2574"]
[TimeControl "180+1"]
[EndTime "9:09:08 PST"]
[Termination "ketster won by resignation"]

1. e4 {[%clk 0:03:00.9]} 1... e6 {[%clk 0:02:41.2]} 2. d4 {[%clk 0:02:53]} 2...
d5 {[%clk 0:02:42.1]} 3. e5 {[%clk 0:02:53.4]} 3... c5 {[%clk 0:02:41.9]} 4. Qg4
{[%clk 0:02:54]} 4... cxd4 {[%clk 0:02:39.5]} 5. Nf3 {[%clk 0:02:54.4]} 5... Ne7
{[%clk 0:02:39.1]} 6. Bd3 {[%clk 0:02:54.7]} 6... Nbc6 {[%clk 0:02:39.1]} 7. O-O
{[%clk 0:02:55]} 7... Nf5 {[%clk 0:02:39.5]} 8. Bxf5 {[%clk 0:02:54.8]} 8...
exf5 {[%clk 0:02:40.3]} 9. Qg3 {[%clk 0:02:55.7]} 9... Be6 {[%clk 0:02:38]} 10.
Re1 {[%clk 0:02:56.1]} 10... h6 {[%clk 0:02:35.4]} 11. h4 {[%clk 0:02:55.9]}
11... Qc7 {[%clk 0:02:28.2]} 12. Nbd2 {[%clk 0:02:55.5]} 12... O-O-O {[%clk
0:02:24.4]} 13. Nb3 {[%clk 0:02:54]} 13... Be7 {[%clk 0:02:18.9]} 14. Nbxd4
{[%clk 0:02:51.7]} 14... Nxd4 {[%clk 0:02:11.5]} 15. Nxd4 {[%clk 0:02:52.6]}
15... g5 {[%clk 0:02:11.9]} 16. h5 {[%clk 0:02:45.9]} 16... f4 {[%clk
0:02:08.6]} 17. Qb3 {[%clk 0:02:42.2]} 17... Bc5 {[%clk 0:01:43.8]} 18. c3
{[%clk 0:02:35.2]} 18... Bg4 {[%clk 0:01:40.2]} 19. Nb5 {[%clk 0:02:00.9]} 19...
Qb6 {[%clk 0:01:37.5]} 20. Nd6+ {[%clk 0:01:44.7]} 20... Rxd6 {[%clk 0:01:27.2]}
21. exd6 {[%clk 0:01:38.8]} 21... Bxf2+ {[%clk 0:01:26.5]} 22. Kf1 {[%clk
0:01:39.1]} 22... Bxe1 {[%clk 0:01:20.4]} 23. Qxb6 {[%clk 0:01:37.8]} 23... axb6
{[%clk 0:01:21.3]} 24. Kxe1 {[%clk 0:01:34.3]} 24... Re8+ {[%clk 0:01:21]} 25.
Kf1 {[%clk 0:01:32.4]} 25... Kd7 {[%clk 0:01:17.1]} 26. a4 {[%clk 0:01:26.6]}
26... Kxd6 {[%clk 0:01:14.4]} 27. a5 {[%clk 0:01:26.9]} 27... bxa5 {[%clk
0:01:05]} 28. Rxa5 {[%clk 0:01:27.8]} 28... Be2+ {[%clk 0:01:04.7]} 29. Kf2
{[%clk 0:01:20.8]} 29... Bxh5 {[%clk 0:01:04.5]} 30. b3 {[%clk 0:01:17.1]} 30...
Re2+ {[%clk 0:01:03.6]} 31. Kf1 {[%clk 0:01:17.3]} 31... Rc2 {[%clk 0:01:00.3]}
32. Ba3+ {[%clk 0:01:18.2]} 32... Ke6 {[%clk 0:00:59.6]} 33. Bb4 {[%clk
0:01:12.1]} 33... g4 {[%clk 0:00:52]} 34. Rb5 {[%clk 0:00:36.3]} 34... g3 {[%clk
0:00:45.2]} 35. c4 {[%clk 0:00:33.5]} 35... Be2+ {[%clk 0:00:35.9]} 36. Ke1
{[%clk 0:00:28.8]} 36... dxc4 {[%clk 0:00:35.4]} 37. bxc4 {[%clk 0:00:26.2]}
37... Bxc4 {[%clk 0:00:34.5]} 38. Rxb7 {[%clk 0:00:18]} 38... Rxg2 {[%clk
0:00:34.1]} 39. Rb6+ {[%clk 0:00:18.1]} 39... Kf5 {[%clk 0:00:33.3]} 40. Rxh6
{[%clk 0:00:17.2]} 40... Rg1+ {[%clk 0:00:30.6]} 41. Kd2 {[%clk 0:00:17.6]}
41... g2 {[%clk 0:00:29.8]} 42. Bc5 {[%clk 0:00:15.3]} 42... Rf1 {[%clk
0:00:26.5]} 43. Kc3 {[%clk 0:00:14.2]} 43... Be6 {[%clk 0:00:25.5]} 44. Bd4
{[%clk 0:00:14.5]} 44... g1=Q {[%clk 0:00:24.2]} 45. Rf6+ {[%clk 0:00:15.4]}
45... Ke4 {[%clk 0:00:24.1]} 46. Bxg1 {[%clk 0:00:15.6]} 46... Rxg1 {[%clk
0:00:25]} 47. Rxe6+ {[%clk 0:00:14.2]} 47... fxe6 {[%clk 0:00:24.7]} 0-1

[Event "Early-Titled-Tuesday-Blitz-February-20-2024"]
[Site "Chess.com"]
[Date "2024.02.20"]
[Round "6"]
[White "ValentunHulka"]
[Black "DonkyDonkyDonkey"]
[Result "0-1"]
[WhiteElo "2773"]
[BlackElo "2919"]
[TimeControl "180+1"]
[EndTime "9:09:14 PST"]
[Termination "DonkyDonkyDonkey won by resignation"]

1. d4 {[%clk 0:03:00.7]} 1... Nf6 {[%clk 0:03:00.2]} 2. c4 {[%clk 0:03:01.1]}
2... g6 {[%clk 0:03:00.3]} 3. Nc3 {[%clk 0:03:01.8]} 3... d5 {[%clk 0:03:00.6]}
4. cxd5 {[%clk 0:03:02.7]} 4... Nxd5 {[%clk 0:03:01.4]} 5. e4 {[%clk 0:03:03.2]}
5... Nxc3 {[%clk 0:03:01.8]} 6. bxc3 {[%clk 0:03:04.1]} 6... Bg7 {[%clk
0:03:02.3]} 7. Nf3 {[%clk 0:03:05]} 7... c5 {[%clk 0:03:02.6]} 8. Bb5+ {[%clk
0:03:05.7]} 8... Nc6 {[%clk 0:03:02.6]} 9. O-O {[%clk 0:03:05.6]} 9... O-O
{[%clk 0:02:59.5]} 10. Bxc6 {[%clk 0:03:05.2]} 10... bxc6 {[%clk 0:03:00.4]} 11.
Qc2 {[%clk 0:03:06]} 11... Bg4 {[%clk 0:02:57.5]} 12. Ne5 {[%clk 0:03:06.2]}
12... Bd7 {[%clk 0:02:56.6]} 13. Rd1 {[%clk 0:03:01]} 13... Qc8 {[%clk
0:02:53.4]} 14. Nxd7 {[%clk 0:02:41.2]} 14... Qxd7 {[%clk 0:02:53.3]} 15. dxc5
{[%clk 0:02:42.1]} 15... Qe6 {[%clk 0:02:52.3]} 16. Be3 {[%clk 0:02:42.8]} 16...
Rab8 {[%clk 0:02:50.2]} 17. Bd4 {[%clk 0:02:37.5]} 17... Qc4 {[%clk 0:02:43.7]}
18. Rac1 {[%clk 0:01:52.6]} 18... Rfd8 {[%clk 0:02:39.7]} 19. h3 {[%clk
0:01:45.5]} 19... a5 {[%clk 0:02:36.3]} 20. h4 {[%clk 0:01:32.1]} 20... a4
{[%clk 0:02:34.7]} 21. h5 {[%clk 0:01:12.6]} 21... a3 {[%clk 0:02:13]} 22. hxg6
{[%clk 0:01:04.9]} 22... Rb2 {[%clk 0:01:50.1]} 23. gxh7+ {[%clk 0:01:04.8]}
23... Kxh7 {[%clk 0:01:48]} 24. Qd3 {[%clk 0:01:05.1]} 24... Qxd3 {[%clk
0:01:46.3]} 25. Rxd3 {[%clk 0:01:06]} 25... e5 {[%clk 0:01:46.9]} 26. Rh3+
{[%clk 0:00:57.4]} 26... Kg8 {[%clk 0:01:47.2]} 27. Be3 {[%clk 0:00:54.5]} 27...
Rxa2 {[%clk 0:01:47.5]} 28. Rh1 {[%clk 0:00:51.4]} 28... Rb2 {[%clk 0:01:42.7]}
29. Kh2 {[%clk 0:00:51]} 29... a2 {[%clk 0:01:42.5]} 30. Ra1 {[%clk 0:00:49]}
30... Ra8 {[%clk 0:01:41.6]} 31. Rhd1 {[%clk 0:00:44.5]} 31... Bf8 {[%clk
0:01:32.7]} 32. Kg3 {[%clk 0:00:43.8]} 32... Kg7 {[%clk 0:01:32.6]} 33. Kg4
{[%clk 0:00:43.5]} 33... Kg6 {[%clk 0:01:32.9]} 34. g3 {[%clk 0:00:41]} 34...
Ra4 {[%clk 0:01:30.6]} 35. Kf3 {[%clk 0:00:33.6]} 35... Be7 {[%clk 0:01:25.7]}
36. Re1 {[%clk 0:00:25.8]} 36... f5 {[%clk 0:01:13.4]} 37. exf5+ {[%clk
0:00:25.8]} 37... Kxf5 {[%clk 0:01:14.3]} 38. Kg2 {[%clk 0:00:20.3]} 38... e4
{[%clk 0:01:07.5]} 39. Bd4 {[%clk 0:00:17.9]} 39... Bg5 {[%clk 0:01:03.8]} 40.
g4+ {[%clk 0:00:11.4]} 40... Kxg4 {[%clk 0:01:04]} 41. Rxe4+ {[%clk 0:00:11.4]}
41... Kf5 {[%clk 0:01:04.7]} 42. Re5+ {[%clk 0:00:11.4]} 42... Kg6 {[%clk
0:01:05.1]} 43. Re6+ {[%clk 0:00:10.9]} 43... Kf7 {[%clk 0:01:05.3]} 44. Ree1
{[%clk 0:00:04.5]} 44... Bf6 {[%clk 0:00:54.3]} 45. Kf3 {[%clk 0:00:01.8]} 45...
Ra3 {[%clk 0:00:33.5]} 46. Re3 {[%clk 0:00:01.8]} 46... Rb1 {[%clk 0:00:25.2]}
47. Bxf6 {[%clk 0:00:01.7]} 47... Kxf6 {[%clk 0:00:20.8]} 0-1

[Event "Early-Titled-Tuesday-Blitz-February-20-2024"]
[Site "Chess.com"]
[Date "2024.02.20"]
[Round "6"]
[White "Licancabur"]
[Black "jodarmarlon1985"]
[Result "1-0"]
[WhiteElo "2408"]
[BlackElo "2179"]
[TimeControl "180+1"]
[EndTime "9:09:16 PST"]
[Termination "Licancabur won on time"]

1. Nf3 {[%clk 0:03:00]} 1... f5 {[%clk 0:02:46.6]} 2. d4 {[%clk 0:02:58.8]} 2...
Nf6 {[%clk 0:02:46.4]} 3. g3 {[%clk 0:02:57.6]} 3... g6 {[%clk 0:02:46.7]} 4.
Bg2 {[%clk 0:02:58.1]} 4... Bg7 {[%clk 0:02:47.6]} 5. O-O {[%clk 0:02:58.6]}
5... O-O {[%clk 0:02:48.5]} 6. b3 {[%clk 0:02:58.2]} 6... d6 {[%clk 0:02:49.4]}
7. Bb2 {[%clk 0:02:58.2]} 7... Ne4 {[%clk 0:02:47.1]} 8. Nbd2 {[%clk 0:02:57.4]}
8... Nxd2 {[%clk 0:02:46.1]} 9. Nxd2 {[%clk 0:02:54.2]} 9... c5 {[%clk
0:02:45.5]} 10. e3 {[%clk 0:02:48]} 10... Nc6 {[%clk 0:02:45.2]} 11. Nc4 {[%clk
0:02:38]} 11... Na5 {[%clk 0:01:42.2]} 12. dxc5 {[%clk 0:02:18.6]} 12... Bxb2
{[%clk 0:01:34.8]} 13. Nxb2 {[%clk 0:02:16]} 13... dxc5 {[%clk 0:01:34.9]} 14.
Qe1 {[%clk 0:02:00.9]} 14... Be6 {[%clk 0:01:28.5]} 15. Qc3 {[%clk 0:01:56.1]}
15... Qc7 {[%clk 0:01:21.5]} 16. Nd3 {[%clk 0:01:51.7]} 16... Rac8 {[%clk
0:01:18.6]} 17. Ne5 {[%clk 0:01:38.5]} 17... b5 {[%clk 0:01:08.9]} 18. a3 {[%clk
0:01:27.5]} 18... Rfd8 {[%clk 0:01:04.5]} 19. Rfd1 {[%clk 0:01:23.4]} 19... c4
{[%clk 0:00:53.3]} 20. b4 {[%clk 0:01:10.2]} 20... Nb7 {[%clk 0:00:49.1]} 21.
Nc6 {[%clk 0:01:05.6]} 21... Rd6 {[%clk 0:00:20.6]} 22. Nxa7 {[%clk 0:00:52.6]}
22... Rcd8 {[%clk 0:00:17.3]} 23. Rxd6 {[%clk 0:00:47.8]} 23... Nxd6 {[%clk
0:00:17.8]} 24. Nc6 {[%clk 0:00:46.9]} 24... Rd7 {[%clk 0:00:11.2]} 25. Qe5
{[%clk 0:00:39.2]} 25... Bf7 {[%clk 0:00:11.4]} 26. Rd1 {[%clk 0:00:36.3]} 26...
Ne4 {[%clk 0:00:04.3]} 27. Qxc7 {[%clk 0:00:22.2]} 27... Rxc7 {[%clk 0:00:05.2]}
28. Bxe4 {[%clk 0:00:18]} 28... fxe4 {[%clk 0:00:06.1]} 29. Ne5 {[%clk
0:00:15.1]} 29... Be6 {[%clk 0:00:05.6]} 30. Rd8+ {[%clk 0:00:13.6]} 30... Kg7
{[%clk 0:00:05.5]} 31. Rb8 {[%clk 0:00:13.7]} 31... Kf6 {[%clk 0:00:04.7]} 32.
Rxb5 {[%clk 0:00:12.5]} 32... c3 {[%clk 0:00:05.1]} 33. g4 {[%clk 0:00:10.1]}
33... h6 {[%clk 0:00:04.2]} 34. h4 {[%clk 0:00:10.1]} 34... g5 {[%clk
0:00:04.2]} 35. h5 {[%clk 0:00:09]} 35... Ra7 {[%clk 0:00:02.6]} 36. Nc6 {[%clk
0:00:04.4]} 36... Rxa3 {[%clk 0:00:01.1]} 37. Nd4 {[%clk 0:00:04.8]} 1-0

[Event "Early-Titled-Tuesday-Blitz-February-20-2024"]
[Site "Chess.com"]
[Date "2024.02.20"]
[Round "6"]
[White "Navyblue1"]
[Black "Chesstiger64"]
[Result "1-0"]
[WhiteElo "2155"]
[BlackElo "2311"]
[TimeControl "180+1"]
[EndTime "9:09:16 PST"]
[Termination "Navyblue1 won on time"]

1. d4 {[%clk 0:02:54.6]} 1... d6 {[%clk 0:02:58.9]} 2. c4 {[%clk 0:02:49.5]}
2... e5 {[%clk 0:02:58.9]} 3. dxe5 {[%clk 0:02:48.1]} 3... dxe5 {[%clk
0:02:59.8]} 4. Qxd8+ {[%clk 0:02:46.4]} 4... Kxd8 {[%clk 0:03:00.7]} 5. Nf3
{[%clk 0:02:41.7]} 5... Nd7 {[%clk 0:02:59.6]} 6. Nc3 {[%clk 0:02:36.1]} 6... c6
{[%clk 0:02:58.8]} 7. Bd2 {[%clk 0:02:35]} 7... f6 {[%clk 0:02:58.8]} 8. O-O-O
{[%clk 0:02:34.5]} 8... Kc7 {[%clk 0:02:55.4]} 9. Ne1 {[%clk 0:02:32.7]} 9... a5
{[%clk 0:02:50.5]} 10. f4 {[%clk 0:02:29.9]} 10... Ne7 {[%clk 0:02:43.3]} 11.
Nd3 {[%clk 0:02:28.4]} 11... Ng6 {[%clk 0:02:41.8]} 12. f5 {[%clk 0:02:23.6]}
12... Ne7 {[%clk 0:02:39]} 13. e4 {[%clk 0:02:23.4]} 13... g6 {[%clk 0:02:30.1]}
14. g4 {[%clk 0:02:18.7]} 14... h5 {[%clk 0:02:29.7]} 15. fxg6 {[%clk
0:02:03.5]} 15... hxg4 {[%clk 0:02:16.9]} 16. Be2 {[%clk 0:01:51.5]} 16... Nb6
{[%clk 0:02:07.8]} 17. Nf2 {[%clk 0:01:40.1]} 17... Nxg6 {[%clk 0:02:04.7]} 18.
b3 {[%clk 0:01:26.4]} 18... Ba3+ {[%clk 0:01:51.8]} 19. Kc2 {[%clk 0:01:25.3]}
19... f5 {[%clk 0:01:51.1]} 20. exf5 {[%clk 0:01:20.5]} 20... Bxf5+ {[%clk
0:01:49.1]} 21. Bd3 {[%clk 0:01:20.8]} 21... Bxd3+ {[%clk 0:01:45.8]} 22. Nxd3
{[%clk 0:01:19.4]} 22... Rag8 {[%clk 0:01:11.4]} 23. Ne4 {[%clk 0:01:11.5]}
23... a4 {[%clk 0:00:59.5]} 24. Bc3 {[%clk 0:01:00.3]} 24... axb3+ {[%clk
0:00:55.6]} 25. axb3 {[%clk 0:00:59]} 25... Nd7 {[%clk 0:00:51]} 26. Rdg1 {[%clk
0:00:46.7]} 26... Rh4 {[%clk 0:00:30.7]} 27. b4 {[%clk 0:00:36.8]} 27... Rgh8
{[%clk 0:00:22.4]} 28. Kb3 {[%clk 0:00:32.1]} 28... Rxh2 {[%clk 0:00:20.2]} 29.
Rxh2 {[%clk 0:00:31.4]} 29... Rxh2 {[%clk 0:00:20.8]} 30. Kxa3 {[%clk
0:00:31.5]} 30... Rh3 {[%clk 0:00:20.9]} 31. Ndf2 {[%clk 0:00:24.1]} 31... Rf3
{[%clk 0:00:16.8]} 32. Rxg4 {[%clk 0:00:24.4]} 32... Nf4 {[%clk 0:00:14.8]} 33.
Kb2 {[%clk 0:00:20.6]} 33... Ne2 {[%clk 0:00:14.5]} 34. Nd1 {[%clk 0:00:16.4]}
34... Nxc3 {[%clk 0:00:10.6]} 35. Ndxc3 {[%clk 0:00:15.7]} 35... Nb6 {[%clk
0:00:10.1]} 36. Rg7+ {[%clk 0:00:15.8]} 36... Kb8 {[%clk 0:00:09.4]} 37. Kb3
{[%clk 0:00:15.9]} 37... Nc8 {[%clk 0:00:08.9]} 38. c5 {[%clk 0:00:15.5]} 38...
Re3 {[%clk 0:00:08.1]} 39. Kc4 {[%clk 0:00:15.9]} 39... Rh3 {[%clk 0:00:06.8]}
40. b5 {[%clk 0:00:15.8]} 40... cxb5+ {[%clk 0:00:05.9]} 41. Nxb5 {[%clk
0:00:14.7]} 41... Rh4 {[%clk 0:00:04.2]} 42. Kd5 {[%clk 0:00:14.7]} 42... Rh1
{[%clk 0:00:03.3]} 43. Nbd6 {[%clk 0:00:13.7]} 43... Rd1+ {[%clk 0:00:02.7]} 44.
Kxe5 {[%clk 0:00:14]} 1-0

[Event "Early-Titled-Tuesday-Blitz-February-20-2024"]
[Site "Chess.com"]
[Date "2024.02.20"]
[Round "6"]
[White "lucasran"]
[Black "Schachmalanders"]
[Result "0-1"]
[WhiteElo "2634"]
[BlackElo "2480"]
[TimeControl "180+1"]
[EndTime "9:09:17 PST"]
[Termination "Schachmalanders won on time"]

1. Nf3 {[%clk 0:02:59.3]} 1... Nf6 {[%clk 0:02:57.4]} 2. c4 {[%clk 0:02:59]}
2... e6 {[%clk 0:02:56.2]} 3. g3 {[%clk 0:02:59.2]} 3... d5 {[%clk 0:02:56.6]}
4. Bg2 {[%clk 0:03:00.1]} 4... c6 {[%clk 0:02:56.6]} 5. b3 {[%clk 0:03:00.1]}
5... Be7 {[%clk 0:02:51.6]} 6. O-O {[%clk 0:03:00.1]} 6... O-O {[%clk
0:02:52.1]} 7. Bb2 {[%clk 0:03:00.7]} 7... b6 {[%clk 0:02:52.6]} 8. d4 {[%clk
0:02:58.3]} 8... Bb7 {[%clk 0:02:52.4]} 9. Nc3 {[%clk 0:02:56.7]} 9... Nbd7
{[%clk 0:02:52]} 10. Qc2 {[%clk 0:02:56.9]} 10... c5 {[%clk 0:02:50.7]} 11. cxd5
{[%clk 0:02:51.7]} 11... Nxd5 {[%clk 0:02:47]} 12. Nxd5 {[%clk 0:02:50.1]} 12...
Bxd5 {[%clk 0:02:46.9]} 13. e4 {[%clk 0:02:45.6]} 13... Bb7 {[%clk 0:02:44.8]}
14. Rfd1 {[%clk 0:02:33.9]} 14... cxd4 {[%clk 0:02:43.8]} 15. Nxd4 {[%clk
0:02:34.8]} 15... Rc8 {[%clk 0:02:43]} 16. Qe2 {[%clk 0:02:35]} 16... Qe8 {[%clk
0:02:35.6]} 17. Rac1 {[%clk 0:01:51.5]} 17... Nc5 {[%clk 0:02:25.5]} 18. Rc2
{[%clk 0:01:33.2]} 18... g6 {[%clk 0:02:00.9]} 19. Rdc1 {[%clk 0:01:33.2]} 19...
e5 {[%clk 0:01:59.5]} 20. Nf3 {[%clk 0:01:05.2]} 20... Bxe4 {[%clk 0:01:51.2]}
21. Rxc5 {[%clk 0:01:04.3]} 21... Rxc5 {[%clk 0:01:50.3]} 22. Qxe4 {[%clk
0:01:02.1]} 22... Rxc1+ {[%clk 0:01:46.6]} 23. Bxc1 {[%clk 0:01:03]} 23... Bf6
{[%clk 0:01:44]} 24. Bb2 {[%clk 0:01:01.9]} 24... Qe6 {[%clk 0:01:38.6]} 25. h4
{[%clk 0:00:33.3]} 25... Re8 {[%clk 0:01:35.9]} 26. Ng5 {[%clk 0:00:33.6]} 26...
Qd6 {[%clk 0:01:27]} 27. Qb7 {[%clk 0:00:28.4]} 27... Qd1+ {[%clk 0:01:20.7]}
28. Kh2 {[%clk 0:00:27.2]} 28... Bxg5 {[%clk 0:01:21.3]} 29. hxg5 {[%clk
0:00:28.1]} 29... Qd2 {[%clk 0:01:21.9]} 30. Ba3 {[%clk 0:00:07.5]} 30... e4
{[%clk 0:01:09.8]} 31. Be7 {[%clk 0:00:05.1]} 31... Qxf2 {[%clk 0:01:00.9]} 32.
Bf6 {[%clk 0:00:05.6]} 32... e3 {[%clk 0:00:56.5]} 33. Qd7 {[%clk 0:00:05.9]}
33... Rf8 {[%clk 0:00:56.4]} 34. Bd4 {[%clk 0:00:04.2]} 34... Qd2 {[%clk
0:00:51.7]} 35. Qd6 {[%clk 0:00:04.5]} 35... e2 {[%clk 0:00:50]} 36. Qf6 {[%clk
0:00:04.7]} 36... Qxd4 {[%clk 0:00:50.4]} 37. Qxd4 {[%clk 0:00:03.8]} 37... e1=Q
{[%clk 0:00:51.3]} 38. Qa4 {[%clk 0:00:04.1]} 38... Qd2 {[%clk 0:00:46.4]} 39.
Qxa7 {[%clk 0:00:03.9]} 39... Qxg5 {[%clk 0:00:46.5]} 40. Qxb6 {[%clk
0:00:04.5]} 40... h5 {[%clk 0:00:46.1]} 41. Qb4 {[%clk 0:00:04.2]} 41... Rd8
{[%clk 0:00:44.2]} 42. a4 {[%clk 0:00:03.6]} 42... Rd3 {[%clk 0:00:40.9]} 43.
Qb8+ {[%clk 0:00:02.8]} 43... Kg7 {[%clk 0:00:40.4]} 44. a5 {[%clk 0:00:02.2]}
44... h4 {[%clk 0:00:40.8]} 45. gxh4 {[%clk 0:00:02.3]} 45... Qxh4+ {[%clk
0:00:41.1]} 46. Kg1 {[%clk 0:00:02.9]} 46... Rd1+ {[%clk 0:00:41.1]} 47. Bf1
{[%clk 0:00:03.2]} 47... Qg4+ {[%clk 0:00:37.8]} 48. Kf2 {[%clk 0:00:03.6]}
48... Qf5+ {[%clk 0:00:37.4]} 49. Ke3 {[%clk 0:00:02.1]} 49... Rxf1 {[%clk
0:00:34.9]} 0-1